bitfinex/quotes_BTCUSD_20251224
["timestamp","ask_amount","ask_price","bid_price","bid_amount"]
[1766592029816,0.22116,87032.0,87023.0,0.01149121]
[1766592030393,0.23265002,87032.0,87020.0,0.05745759]
[1766592030600,0.000549,87020.0,87017.0,0.06895186]
[1766592030825,0.01152,87019.0,87017.0,0.06895186]
[1766592031026,0.01152,87019.0,87017.0,0.011492]
[1766592031405,0.01152,87019.0,87018.0,0.05745937]
[1766592031607,0.01152,87019.0,87013.0,9.778e-05]
[1766592032403,0.01149174,87019.0,87013.0,9.778e-05]
[1766592032602,0.011492,87017.0,87013.0,7.8e-07]
[1766592032843,0.01152,87018.0,87013.0,7.8e-07]
[1766592032975,0.01152,87018.0,87014.0,0.0114924]
[1766592033187,0.011423,87018.0,87014.0,0.0114924]
[1766592033393,0.011423,87018.0,87013.0,0.0689554]
[1766592033590,0.01152,87017.0,87013.0,7.8e-07]
[1766592033875,0.01152,87016.0,87014.0,0.17022]
[1766592034765,0.01149095,87025.0,87014.0,0.22768201]
[1766592034766,0.01152,87015.0,87014.0,0.22768201]
[1766592034922,0.01152,87018.0,87016.0,0.0574601]
[1766592035124,0.02756656,87029.0,87019.0,0.01149174]
[1766592035344,0.01152,87028.0,87021.0,0.01149147]
[1766592035546,0.01152,87028.0,87020.0,0.01149161]
[1766592035757,0.01152,87028.0,87021.0,0.01149147]
[1766592035923,0.01152,87028.0,87020.0,0.01149161]
[1766592036144,0.01152,87027.0,87024.0,0.01149108]
[1766592036306,0.01152,87026.0,87024.0,0.01149108]
[1766592036510,0.04596,87035.0,87027.0,0.01149068]
[1766592036748,0.01152,87034.0,87027.0,0.06894411]
[1766592036968,0.01152,87034.0,87025.0,0.01149095]
[1766592037225,0.01152,87034.0,87021.0,0.17022]
[1766592037226,0.01148857,87043.0,87031.0,0.01149015]
[1766592037393,0.04596,87040.0,87032.0,0.06894006]
[1766592037542,0.04596,87040.0,87032.0,0.01149002]
[1766592037742,0.04596,87040.0,87031.0,0.06894079]
[1766592037943,0.04596,87040.0,87032.0,0.01149002]
[1766592038166,0.04596,87040.0,87031.0,0.06894079]
[1766592038368,0.01159738,87052.0,87039.0,0.0114891]
[1766592038625,0.02756656,87046.0,87039.0,0.06838542]
[1766592038935,0.01148778,87049.0,87035.0,0.17022]
[1766592039102,0.02756656,87045.0,87036.0,0.01148949]
[1766592039310,0.01156,87044.0,87037.0,0.06893618]
[1766592039513,0.01156,87044.0,87036.0,0.01148949]
[1766592039763,0.01156,87043.0,87038.0,0.01148923]
[1766592040157,0.06892635,87050.0,87043.0,0.01203757]
[1766592040158,0.01156,87050.0,87043.0,0.01203757]
[1766592040535,0.01156,87050.0,87041.0,0.05744359]
[1766592040734,0.01156,87050.0,87041.0,0.01148883]
[1766592040933,0.01156,87050.0,87043.0,0.01148857]
[1766592041259,0.01156,87050.0,87042.0,0.0114887]
[1766592041455,0.01166628,87050.0,87042.0,0.0114887]
[1766592041638,0.01166628,87050.0,87043.0,0.01148857]
[1766592042038,0.01166628,87050.0,87044.0,0.01148844]
[1766592042250,0.01166628,87050.0,87046.0,0.01148817]
[1766592042444,0.01166628,87050.0,87040.0,0.01148897]
[1766592042925,0.22111964,87048.0,87034.0,0.01148976]
[1766592043126,0.06893546,87038.0,87024.0,0.01149108]
[1766592043356,0.17524,87039.0,87029.0,0.01149042]
[1766592043763,0.17524,87039.0,87031.0,0.01149015]
[1766592043946,0.17524,87039.0,87030.0,0.0689416]
[1766592044140,0.01148936,87037.0,87023.0,0.01156]
[1766592044374,0.01148989,87033.0,87023.0,0.01156]
[1766592044582,0.00055,87023.0,87009.0,0.17022]
[1766592044790,0.17524,87022.0,87011.0,0.01149279]
[1766592044970,0.17524,87022.0,87014.0,0.0114924]
[1766592045143,0.17524,87022.0,87007.0,0.01149332]
[1766592045144,0.01149161,87020.0,87007.0,0.01149332]
[1766592045347,0.01149174,87019.0,86999.0,0.01149438]
[1766592045545,0.011492,87017.0,87005.0,0.06896146]
[1766592045749,0.01149227,87015.0,87000.0,0.01149425]
[1766592046036,0.01149227,87015.0,86999.0,0.01156]
[1766592046037,0.16368,87014.0,86999.0,0.01156]
[1766592046233,0.16368,87014.0,87007.0,0.01149332]
[1766592046475,0.16368,87014.0,87008.0,0.06895914]
[1766592046671,0.16368,87014.0,87008.0,0.05209288]
[1766592046850,0.16368,87014.0,87010.0,0.01149293]
[1766592047062,0.16368,87014.0,87008.0,0.06358607]
[1766592047268,0.01156,87015.0,87010.0,0.01149293]
[1766592047570,0.01156,87015.0,87009.0,0.01149306]
[1766592047735,0.01156,87014.0,87009.0,0.01149306]
[1766592047934,0.01156,87014.0,87008.0,0.06358607]
[1766592048190,0.01156,87014.0,87008.0,0.01149319]
[1766592048687,0.01156,87014.0,87006.0,0.06896016]
[1766592049051,0.02305253,87013.0,86999.0,0.1933807]
[1766592049235,0.01156,87013.0,87003.0,0.01149385]
[1766592049436,0.01156,87013.0,87004.0,0.0689622]
[1766592049679,0.01156,87013.0,87004.0,0.06896232]
[1766592049910,0.01156,87013.0,87005.0,0.0689614]
[1766592050113,0.01156,87012.0,87005.0,0.01149359]
[1766592050615,0.01156,87012.0,87009.0,0.01149306]
[1766592050827,0.01156,87012.0,87005.0,0.01149359]
[1766592050983,0.01156,87012.0,87008.0,0.01149319]
[1766592051181,0.01156,87011.0,87008.0,0.01149319]
[1766592051404,0.01149147,87021.0,87010.0,0.01149293]
[1766592051603,0.01156,87020.0,87010.0,0.01149293]
[1766592051808,0.01156,87020.0,87011.0,0.06895676]
[1766592052126,0.01156,87019.0,87013.0,0.01149253]
[1766592052680,0.01156,87019.0,87012.0,0.01149266]
[1766592052875,0.01156,87019.0,87008.0,0.05746583]
[1766592053100,0.01156,87019.0,87010.0,0.01149293]
[1766592053298,0.01156,87019.0,87004.0,0.01149372]
[1766592053503,0.01149266,87012.0,86999.0,0.01166632]
[1766592053723,0.06895777,87010.0,86999.0,0.01166632]
[1766592054242,0.01149372,87004.0,86999.0,0.00010632]
[1766592054419,0.06896259,87004.0,86999.0,3.2e-07]
[1766592054605,0.02756656,87002.0,86999.0,3.2e-07]
[1766592055862,0.02756656,87001.0,86995.0,0.00011]
[1766592056000,0.02767277,87001.0,86995.0,0.00011]
[1766592056215,0.00010621,87001.0,86995.0,0.00011]
[1766592058539,0.01160033,87001.0,86995.0,0.00011]
[1766592058743,0.00010621,87001.0,86995.0,0.00011]
[1766592059768,0.01166621,87001.0,86995.0,0.00011]
[1766592060388,0.01156121,87001.0,86995.0,0.00011]
[1766592063346,0.01156121,87001.0,86995.0,0.01160491]
[1766592063532,0.01156121,87001.0,86995.0,0.00011]
[1766592064051,0.00107587,87001.0,86995.0,0.01160491]
[1766592064264,0.26776489,87135.0,86995.0,0.01160491]
[1766592064265,0.01156,87019.0,87015.0,0.01149227]
[1766592064698,0.01101,87019.0,87014.0,0.0114924]
[1766592065089,0.01101,87019.0,87011.0,0.01149279]
[1766592065286,0.01101,87019.0,87012.0,0.01149266]
[1766592065498,0.01101,87019.0,87013.0,0.01149253]
[1766592065703,0.01156,87021.0,87013.0,0.01149253]
[1766592066170,0.01156,87021.0,87017.0,0.011492]
[1766592066496,0.20054,87036.0,87030.0,0.01149029]
[1766592066700,0.20054,87036.0,86999.0,0.39082811]
[1766592066701,0.001099,87030.0,87024.0,0.01149108]
[1766592066844,0.001099,87030.0,87025.0,0.05745466]
[1766592067044,0.02756656,87031.0,87026.0,0.05745395]
[1766592067291,0.00011,87040.0,87033.0,0.01148989]
[1766592067486,0.20054,87051.0,87033.0,0.01148989]
[1766592067487,0.20054,87051.0,87039.0,0.0114891]
[1766592067693,0.02756656,87056.0,87042.0,0.05744328]
[1766592067893,0.03905341,87056.0,87043.0,0.01148857]
[1766592068089,0.01167,87052.0,87043.0,0.01148857]
[1766592068292,0.01167,87052.0,87040.0,0.01148897]
[1766592068489,0.01167,87052.0,87035.0,0.45691966]
[1766592068490,0.000549,87043.0,87035.0,0.01148963]
[1766592068731,0.21202765,87050.0,87039.0,0.0114891]
[1766592069117,0.21202765,87050.0,87037.0,0.01148936]
[1766592069330,0.01148778,87049.0,87038.0,0.01148923]
[1766592069530,0.01148778,87049.0,87038.0,0.02304923]
[1766592069703,0.26946627,87050.0,87038.0,0.02304923]
[1766592069906,0.20054,87050.0,87040.0,0.01148897]
[1766592070150,0.20054,87041.0,87027.0,0.01149068]
[1766592070370,0.02756656,87042.0,87027.0,0.00010638]
[1766592070371,0.2120291,87039.0,87027.0,0.00010638]
[1766592070516,0.20054,87039.0,87030.0,0.01149029]
[1766592070719,0.20054,87039.0,87033.0,0.06893912]
[1766592070937,0.01156,87040.0,87034.0,0.01148976]
[1766592071145,0.01148791,87048.0,87034.0,0.01148976]
[1766592071146,0.00011,87052.0,87038.0,0.01148923]
[1766592071340,0.00011,87052.0,87041.0,0.06893291]
[1766592071510,0.01156,87051.0,87041.0,0.06893291]
[1766592071709,0.01156,87051.0,87042.0,0.06893185]
[1766592071965,0.01156,87051.0,87043.0,0.01148857]
[1766592073264,0.01156,87051.0,87042.0,0.0114887]
[1766592073575,0.00011,87052.0,87051.0,0.000549]
[1766592073948,0.00011,87052.0,87050.0,0.05743772]
[1766592074672,0.01156,87068.0,87056.0,0.01148685]
[1766592074904,0.20054,87077.0,87058.0,0.21564]
[1766592075127,0.01148356,87081.0,87058.0,0.21564]
[1766592075128,0.02756656,87075.0,87065.0,0.01148567]
[1766592075312,0.02756656,87075.0,87067.0,0.0114854]
[1766592075609,0.02756656,87075.0,87062.0,0.22971962]
[1766592075610,0.01148501,87070.0,87056.0,0.01148685]
[1766592075771,0.05742582,87069.0,87056.0,0.01148685]
[1766592075973,0.20054,87069.0,87054.0,0.01148712]
[1766592076182,0.01148553,87066.0,87052.0,0.0689241]
[1766592076363,0.20054,87065.0,87056.0,0.01156]
[1766592077801,0.20054,87065.0,87052.0,0.01148738]
[1766592077802,0.0114858,87064.0,87020.0,0.00011]
[1766592078004,0.00055,87056.0,87028.0,0.01156]
[1766592078214,0.00011,87058.0,87052.0,0.01148738]
[1766592078379,0.00011,87058.0,87052.0,0.28456422]
[1766592078576,0.00011,87058.0,87053.0,0.06892335]
[1766592079012,0.01156,87064.0,87057.0,0.22712672]
[1766592079213,0.06891108,87069.0,87057.0,0.22712672]
[1766592079394,0.02315137,87070.0,87057.0,0.28455973]
[1766592079598,0.02315137,87070.0,87059.0,0.01148646]
[1766592079928,0.02315137,87070.0,87063.0,0.01148593]
[1766592079929,0.00010636,87070.0,87063.0,0.01148593]
[1766592080148,0.00010636,87070.0,87065.0,0.21564]
[1766592080337,0.01156,87077.0,87070.0,0.00033264]
[1766592080571,0.01148395,87078.0,87066.0,0.01148553]
[1766592080772,0.01148395,87078.0,87065.0,0.21564]
[1766592080773,0.00011,87066.0,87065.0,0.05742835]
[1766592081144,0.01148395,87078.0,87066.0,0.01148553]
[1766592081347,0.22552895,87078.0,87067.0,0.0114854]
[1766592081594,0.01148395,87078.0,87067.0,0.0114854]
[1766592081925,0.01148395,87078.0,87066.0,0.01148553]
[1766592082127,0.01148422,87076.0,87065.0,0.01148567]
[1766592082330,0.01148408,87077.0,87065.0,0.0574281]
[1766592082563,0.229469,87082.0,87073.0,0.01148461]
[1766592082766,0.0002,87083.0,87074.0,0.01148448]
[1766592082969,0.000216,87074.0,87064.0,0.0114858]
[1766592083195,0.01148422,87076.0,87065.0,0.01148567]
[1766592083396,0.0689051,87077.0,87065.0,0.01148567]
[1766592083621,0.01148395,87078.0,87064.0,0.00010636]
[1766592083822,0.01148395,87078.0,87067.0,0.0114854]
[1766592083995,0.06890309,87079.0,87064.0,0.05753477]
[1766592083996,0.14190656,87080.0,87071.0,0.01148488]
[1766592084198,0.14190656,87080.0,87071.0,0.06890921]
[1766592084467,0.14190656,87080.0,87070.0,0.06890945]
[1766592084605,0.01148382,87079.0,87068.0,0.0689115]
[1766592085188,0.01156,87078.0,87069.0,0.01148514]
[1766592085381,0.01156,87078.0,87070.0,0.01148501]
[1766592085665,0.01156,87078.0,87069.0,0.01148514]
[1766592085862,0.01148461,87073.0,87057.0,0.01148672]
[1766592086067,0.01156,87078.0,87059.0,0.05743198]
[1766592086068,0.000549,87069.0,87059.0,0.05743198]
[1766592086270,0.000549,87069.0,87060.0,0.05743139]
[1766592086428,0.08046437,87078.0,87065.0,0.02304567]
[1766592086629,0.01156,87077.0,87072.0,0.01148474]
[1766592086830,0.00011,87089.0,87077.0,0.22767408]
[1766592087058,1e-08,87092.0,87091.0,0.05741121]
[1766592087232,0.02600386,87099.0,87097.0,0.05740707]
[1766592087432,0.0002,87100.0,87097.0,0.01093245]
[1766592087637,0.0002,87100.0,87092.0,0.22712211]
[1766592088034,0.0002,87100.0,87097.0,0.01148145]
[1766592088372,0.01156,87111.0,87103.0,0.06888355]
[1766592088622,0.0001063,87111.0,87106.0,0.05740132]
[1766592088795,0.02756656,87119.0,87112.0,0.01147947]
[1766592089002,0.01156,87120.0,87110.0,0.01147973]
[1766592089154,0.01156,87120.0,87108.0,0.22166]
[1766592089155,0.01147881,87117.0,87108.0,0.22166]
[1766592089335,0.01147855,87119.0,87112.0,0.22166]
[1766592089543,0.01147894,87116.0,87111.0,0.01156]
[1766592089742,0.01147894,87116.0,87109.0,0.01156]
[1766592089743,0.01147921,87114.0,87109.0,0.01156]
[1766592090000,0.01147947,87112.0,87108.0,0.01156]
[1766592090163,0.01147934,87113.0,87108.0,0.01156]
[1766592090562,0.01147565,87141.0,87115.0,0.01147907]
[1766592090750,0.01147565,87141.0,87105.0,0.01836642]
[1766592090751,0.00011,87144.0,87133.0,0.0114767]
[1766592091101,0.00021626,87144.0,87133.0,0.06885995]
[1766592091251,0.00021626,87144.0,87133.0,0.0114767]
[1766592091443,0.01169151,87144.0,87131.0,0.01147697]
[1766592091668,0.01147604,87138.0,87130.0,0.22166]
[1766592091886,0.01147644,87135.0,87130.0,0.22166]
[1766592092207,0.01147591,87139.0,87130.0,0.22166]
[1766592092426,0.06885493,87140.0,87130.0,0.22155]
[1766592092602,0.03385493,87140.0,87130.0,0.22155]
[1766592092794,0.01147618,87137.0,87130.0,0.22155]
[1766592092979,0.01147631,87136.0,87130.0,0.22155]
[1766592093184,3.86e-06,87131.0,87130.0,0.22155]
[1766592093783,3.86e-06,87131.0,87129.0,0.01156]
[1766592094016,0.0114767,87133.0,87123.0,0.01156]
[1766592094420,0.01147539,87143.0,87130.0,0.0114771]
[1766592094622,0.01147552,87142.0,87133.0,0.000549]
[1766592094956,0.01147539,87143.0,87132.0,0.01147683]
[1766592095164,0.01147539,87143.0,87131.0,0.23313697]
[1766592095374,0.06906785,87144.0,87131.0,0.24469697]
[1766592095673,0.01147565,87141.0,87131.0,0.23322]
[1766592096167,0.06885332,87142.0,87131.0,0.23322]
[1766592096324,0.06885474,87140.0,87131.0,0.23322]
[1766592096863,0.01147631,87136.0,87120.0,0.01147842]
[1766592097027,0.05738367,87133.0,87121.0,0.02303828]
[1766592097335,0.01147763,87126.0,87122.0,0.01156]
[1766592097524,0.01147736,87128.0,87122.0,0.01156]
[1766592097720,0.01147749,87127.0,87122.0,0.01156]
[1766592097961,0.01147749,87127.0,87111.0,0.0114796]
[1766592097962,0.01147763,87126.0,87116.0,0.01156]
[1766592098143,0.01147789,87124.0,87116.0,0.01156]
[1766592098356,0.01147749,87127.0,87116.0,0.01156]
[1766592098560,0.06886455,87128.0,87116.0,0.02303894]
[1766592098964,0.01147723,87129.0,87117.0,0.01147881]
[1766592099293,0.01156,87130.0,87120.0,0.23003]
[1766592099449,0.01147604,87138.0,87129.0,0.000549]
[1766592099660,0.01156,87141.0,87134.0,0.01147657]
[1766592099875,0.01147473,87148.0,87132.0,0.24150683]
[1766592100079,0.01156,87146.0,87141.0,0.00055]
[1766592100370,0.01156,87146.0,87136.0,0.05738126]
[1766592100537,0.01156,87146.0,87137.0,0.01147618]
[1766592100711,0.06906808,87144.0,87132.0,0.23003]
[1766592100893,0.06906808,87144.0,87132.0,0.24150683]
[1766592101094,0.06906808,87144.0,87133.0,0.01119416]
[1766592101293,0.01169151,87144.0,87133.0,0.01119416]
[1766592101495,0.01169151,87144.0,87133.0,0.24122416]
[1766592101737,0.00021626,87144.0,87134.0,0.01147657]
[1766592101938,0.00021626,87144.0,87133.0,0.23003]
[1766592101939,0.00021626,87144.0,87133.0,0.2415067]
[1766592102510,0.00021626,87144.0,87134.0,0.01147657]
[1766592102745,0.00021626,87144.0,87135.0,0.23003]
[1766592103654,0.01147341,87158.0,87144.0,0.000216]
[1766592103884,0.05737123,87152.0,87145.0,0.23003]
[1766592104098,0.01147367,87156.0,87145.0,0.00010626]
[1766592104270,0.2235,87156.0,87152.0,3e-06]
[1766592104423,0.01147394,87154.0,87145.0,0.00010626]
[1766592104624,0.05737098,87153.0,87145.0,2.6e-07]
[1766592104853,0.06884365,87154.0,87145.0,2.6e-07]
[1766592105026,0.01147407,87153.0,87145.0,2.6e-07]
[1766592105231,0.0114742,87152.0,87145.0,2.6e-07]
[1766592105825,0.01147446,87150.0,87145.0,2.6e-07]
[1766592106052,0.0114742,87152.0,87145.0,2.6e-07]
[1766592106253,0.19694167,87156.0,87152.0,0.000325]
[1766592106465,0.00011,87157.0,87152.0,0.000325]
[1766592106704,0.00011,87157.0,87146.0,0.23003]
[1766592106847,0.01147381,87155.0,87146.0,0.23003]
[1766592107041,0.01147394,87154.0,87146.0,0.23003]
[1766592107396,0.01147367,87156.0,87146.0,0.23003]
[1766592107574,0.05736915,87155.0,87146.0,0.23003]
[1766592107741,0.01147381,87155.0,87146.0,0.23003]
[1766592107945,0.06884307,87155.0,87146.0,0.23003]
[1766592108258,0.06884331,87155.0,87146.0,0.23003]
[1766592108454,0.01147367,87156.0,87146.0,0.23003]
[1766592108657,0.00011,87157.0,87148.0,0.01147473]
[1766592108940,0.24092072,87166.0,87145.0,0.01147538]
[1766592108941,0.01152,87167.0,87157.0,0.00011]
[1766592109299,0.01147196,87169.0,87157.0,0.06884122]
[1766592109501,0.01152,87166.0,87156.0,0.01147367]
[1766592109701,0.01152,87166.0,87149.0,0.08036698]
[1766592109702,0.02299236,87166.0,87149.0,0.08036698]
[1766592109949,0.06883507,87165.0,87152.0,0.06884511]
[1766592110153,0.01156,87165.0,87156.0,0.01147367]
[1766592110358,0.00069637,87153.0,87152.0,0.0114742]
[1766592110566,3.7e-07,87153.0,87152.0,0.0114742]
[1766592110722,3.7e-07,87153.0,87151.0,0.29887584]
[1766592110919,0.06883817,87161.0,87151.0,0.23003]
[1766592111141,0.05737064,87153.0,87151.0,0.21478146]
[1766592111307,0.05737064,87153.0,87149.0,0.01152]
[1766592111308,0.0114742,87152.0,87149.0,0.01152]
[1766592111508,0.02984062,87152.0,87141.0,0.01156]
[1766592111764,0.01147446,87150.0,87141.0,0.01156]
[1766592111965,0.06884611,87151.0,87141.0,0.01156]
[1766592112107,0.01147446,87150.0,87141.0,0.01156]
[1766592112313,0.01147433,87151.0,87136.0,0.01147631]
[1766592112561,0.01147433,87151.0,87137.0,0.01147618]
[1766592112562,0.01156,87151.0,87137.0,0.01147618]
[1766592112877,0.01147433,87151.0,87141.0,0.23003]
[1766592113018,0.00010622,87152.0,87142.0,0.01147552]
[1766592113219,0.01147486,87147.0,87136.0,0.01156]
[1766592113432,0.01147499,87146.0,87136.0,0.01156]
[1766592113635,0.06885165,87144.0,87137.0,0.01156]
[1766592113834,0.06885321,87142.0,87137.0,0.01156]
[1766592114043,0.01147552,87142.0,87137.0,0.01156]
[1766592114240,0.06885213,87144.0,87137.0,0.01156]
[1766592114462,0.01147552,87142.0,87137.0,0.01156]
[1766592114661,0.06885247,87143.0,87137.0,0.01156]
[1766592115142,0.01147552,87142.0,87137.0,0.01156]
[1766592115382,0.06885412,87141.0,87137.0,0.01156]
[1766592115588,0.01147578,87140.0,87137.0,0.011011]
[1766592115997,0.01147604,87138.0,87132.0,0.01156]
[1766592116220,0.05738354,87133.0,87127.0,0.01156]
[1766592116416,0.0688611,87132.0,87127.0,0.01156]
[1766592116625,0.0114767,87133.0,87127.0,0.01156]
[1766592116819,0.0688612,87132.0,87127.0,0.01156]
[1766592117038,0.01147683,87132.0,87127.0,0.01156]
[1766592117251,0.01147657,87134.0,87127.0,0.01156]
[1766592117665,0.01147644,87135.0,87127.0,0.01156]
[1766592117864,0.01147683,87132.0,87127.0,0.01156]
[1766592118008,0.01147697,87131.0,87127.0,0.01156]
[1766592118200,0.06886325,87130.0,87127.0,0.01156]
[1766592118425,0.01147683,87132.0,87124.0,0.23003]
[1766592118657,0.01147723,87129.0,87116.0,0.15392]
[1766592118850,0.01147723,87129.0,87118.0,0.01156]
[1766592119003,0.0573856,87130.0,87118.0,0.01156]
[1766592119239,0.01147934,87113.0,87089.0,0.01836642]
[1766592119441,0.01147868,87118.0,87108.0,0.00011]
[1766592119663,0.05739407,87117.0,87109.0,0.01156]
[1766592119866,0.01147828,87121.0,87117.0,0.00055]
[1766592120061,0.01147828,87121.0,87110.0,0.01147973]
[1766592120298,0.01147868,87118.0,87109.0,0.01156]
[1766592120539,0.01147907,87115.0,87108.0,0.00011]
[1766592120864,0.06888124,87107.0,87094.0,0.15392]
[1766592121063,0.01147973,87110.0,87097.0,0.01148145]
[1766592121064,0.06887957,87109.0,87097.0,0.01148145]
[1766592121307,0.01147894,87116.0,87102.0,0.01148079]
[1766592121479,0.01147763,87126.0,87109.0,0.000549]
[1766592121718,0.01147802,87123.0,87112.0,0.15392]
[1766592121896,0.01147828,87121.0,87112.0,0.15392]
[1766592122090,0.05739642,87114.0,87100.0,0.05740487]
[1766592122293,0.0114796,87111.0,87099.0,0.01148118]
[1766592122537,0.01147855,87119.0,87104.0,0.01148052]
[1766592122679,0.01147907,87115.0,87104.0,0.01148052]
[1766592123100,0.01147828,87121.0,87104.0,0.01148052]
[1766592123325,0.45900655,87145.0,86933.0,0.42317397]
[1766592123326,0.0114771,87130.0,87112.0,0.15392]
[1766592123625,0.01147789,87124.0,87121.0,0.00055]
[1766592123787,0.05739078,87122.0,87110.0,0.16539973]
[1766592123989,0.01147815,87122.0,87111.0,0.0114796]
[1766592124201,0.01147789,87124.0,87110.0,0.16539973]
[1766592124421,0.06886871,87123.0,87111.0,0.0114796]
[1766592124860,0.06887074,87120.0,87110.0,0.15392]
[1766592125384,0.01147631,87136.0,87122.0,0.01147815]
[1766592125639,0.00011,87146.0,87132.0,0.15392]
[1766592125841,0.0114767,87133.0,87121.0,0.01147828]
[1766592126046,0.01147697,87131.0,87118.0,0.01156]
[1766592126239,0.01156,87137.0,87124.0,0.01147789]
[1766592126379,0.01147631,87136.0,87126.0,0.15392]
[1766592126600,0.01147697,87131.0,87120.0,0.01156]
[1766592126944,0.01156,87140.0,87131.0,0.05738428]
[1766592127154,0.0002162,87146.0,87138.0,0.01147604]
[1766592127366,0.001099,87138.0,87134.0,0.00114752]
[1766592127574,0.001099,87138.0,87131.0,0.01156]
[1766592127734,0.06885077,87145.0,87131.0,0.02303697]
[1766592127937,0.01147552,87142.0,87131.0,0.01156]
[1766592128155,0.01147539,87143.0,87132.0,0.01147683]
[1766592128364,0.01147565,87141.0,87131.0,0.01156]
[1766592128727,0.01147591,87139.0,87131.0,0.01156]
[1766592128922,0.01147565,87141.0,87131.0,0.01156]
[1766592128923,0.06885392,87141.0,87131.0,0.01156]
[1766592129143,0.05737423,87148.0,87135.0,0.01147644]
[1766592129343,0.01156,87149.0,87137.0,0.05738055]
[1766592129559,0.01169119,87146.0,87134.0,0.06885938]
[1766592129757,0.01147512,87145.0,87133.0,0.1653967]
[1766592130012,0.01169119,87146.0,87135.0,0.01147644]
[1766592130180,0.01147525,87144.0,87133.0,0.1653967]
[1766592130381,0.01147552,87142.0,87133.0,0.15392]
[1766592130655,0.01147604,87138.0,87131.0,0.01156]
[1766592131097,0.01147486,87147.0,87131.0,0.01156]
[1766592131264,0.01147552,87142.0,87131.0,0.02303697]
[1766592131601,0.06885097,87145.0,87134.0,0.01147657]
[1766592131798,0.01147512,87145.0,87135.0,0.01147644]
[1766592132042,0.01169119,87146.0,87131.0,0.01156]
[1766592132178,0.000549,87135.0,87131.0,0.01156]
[1766592132382,0.01147578,87140.0,87131.0,0.01156]
[1766592132597,0.01147591,87139.0,87125.0,0.06886608]
[1766592132798,0.01147591,87139.0,87127.0,0.01147749]
[1766592133001,0.06885479,87140.0,87127.0,0.01147749]
[1766592133002,0.01147578,87140.0,87127.0,0.01147749]
[1766592133201,0.01156,87140.0,87129.0,0.01147723]
[1766592133375,0.24097824,87145.0,87136.0,0.15392]
[1766592133376,0.01147512,87145.0,87136.0,0.15392]
[1766592133698,0.01147512,87145.0,87136.0,0.153371]
[1766592133902,0.08062625,87146.0,87136.0,0.153371]
[1766592134231,0.0117762,87146.0,87136.0,0.153371]
[1766592135178,0.0117762,87146.0,87136.0,0.16484731]
[1766592135379,0.02325119,87146.0,87136.0,0.153371]
[1766592135811,0.0117762,87146.0,87136.0,0.153371]
[1766592136396,0.02325119,87146.0,87136.0,0.153371]
[1766592136593,0.0117762,87146.0,87139.0,0.06885519]
[1766592136814,0.0112272,87146.0,87140.0,0.01147578]
[1766592137274,0.00025211,87161.0,87148.0,0.01147473]
[1766592137422,0.00025211,87161.0,87149.0,0.0114746]
[1766592137423,0.013773,87159.0,87149.0,0.0114746]
[1766592137585,0.013773,87159.0,87153.0,0.05736991]
[1766592137791,0.013773,87159.0,87153.0,0.01147407]
[1766592138008,0.013773,87159.0,87154.0,0.01147394]
[1766592138214,0.013773,87159.0,87153.0,0.01147407]
[1766592138432,0.013773,87159.0,87145.0,0.39498213]
[1766592138433,0.013773,87159.0,87149.0,0.05737287]
[1766592138676,0.02524628,87159.0,87148.0,0.01147473]
[1766592138997,0.013773,87159.0,87148.0,0.01147473]
[1766592139152,0.000549,87148.0,87144.0,0.15392]
[1766592139356,0.000549,87148.0,87145.0,0.01156]
[1766592139578,0.05736662,87159.0,87146.0,0.01147499]
[1766592139754,0.01147315,87160.0,87145.0,0.02303512]
[1766592139959,0.06883936,87160.0,87149.0,0.0114746]
[1766592140163,0.06883993,87159.0,87148.0,0.01147473]
[1766592140357,0.01147341,87158.0,87145.0,0.01156]
[1766592140736,0.06883926,87160.0,87147.0,0.01147486]
[1766592140914,0.00025211,87161.0,87149.0,0.06884736]
[1766592141117,0.00025211,87161.0,87153.0,0.05736906]
[1766592141317,1.1e-07,87161.0,87151.0,0.01147433]
[1766592141525,1.1e-07,87161.0,87152.0,0.0114742]
[1766592141666,1.1e-07,87161.0,87155.0,0.01147381]
[1766592142324,1.1e-07,87161.0,87156.0,0.01147367]
[1766592142476,1.1e-07,87161.0,87156.0,0.06884191]
[1766592142677,0.01146973,87186.0,87167.0,0.15392]
[1766592142891,0.04592,87192.0,87172.0,0.15392]
[1766592142892,0.01146894,87192.0,87172.0,0.15392]
[1766592143093,0.01156,87194.0,87178.0,0.15392]
[1766592143310,0.01156,87194.0,87191.0,0.01146907]
[1766592143614,0.06242516,87198.0,87196.0,0.15392]
[1766592143816,0.01146539,87219.0,87202.0,0.01146762]
[1766592144016,0.01146539,87219.0,87207.0,0.01146696]
[1766592144017,0.013773,87215.0,87207.0,0.01146696]
[1766592144216,0.000362,87207.0,87203.0,0.01156]
[1766592144411,2e-06,87207.0,87203.0,0.01156]
[1766592144592,0.01157526,87220.0,87213.0,0.15392]
[1766592144593,0.00011,87220.0,87213.0,0.15392]
[1766592144793,4.55e-06,87220.0,87218.0,0.21124731]
[1766592145018,0.0114625,87241.0,87225.0,0.15392]
[1766592145198,0.00021629,87239.0,87226.0,0.17694447]
[1766592145394,0.00021629,87239.0,87228.0,0.06878489]
[1766592145594,0.01167905,87239.0,87229.0,0.01146407]
[1766592145825,0.01146328,87235.0,87226.0,0.16548]
[1766592146021,0.01146315,87236.0,87226.0,0.16548]
[1766592146225,0.01146407,87229.0,87214.0,0.15392]
[1766592146425,0.01146407,87229.0,87126.0,0.26723061]
[1766592146426,0.011464,87204.0,87203.0,0.01146749]
[1766592146625,0.01146591,87215.0,87203.0,0.01156]
[1766592146832,0.01146591,87215.0,87198.0,0.2571802]
[1766592146833,0.01146683,87208.0,87204.0,0.01156]
[1766592147036,0.0114667,87209.0,87204.0,0.01156]
[1766592147240,0.01157631,87212.0,87204.0,0.01156]
[1766592147444,0.01146565,87217.0,87212.0,0.000437]
[1766592147793,0.05733024,87214.0,87211.0,0.01156]
[1766592147924,0.0114667,87209.0,87199.0,0.15392]
[1766592148125,0.01201844,87211.0,87200.0,0.01156]
[1766592148126,0.0114671,87206.0,87200.0,0.01156]
[1766592148354,0.0114671,87206.0,87201.0,0.01156]
[1766592148687,0.00129017,87202.0,87192.0,0.00011]
[1766592148826,0.05733616,87205.0,87183.0,0.01147012]
[1766592148827,0.01146867,87194.0,87183.0,0.01147012]
[1766592149031,0.05734536,87191.0,87182.0,0.00011]
[1766592149240,0.01146802,87199.0,87191.0,0.000437]
[1766592149463,0.01146815,87198.0,87188.0,0.01146946]
[1766592149689,0.01146815,87198.0,87184.0,0.01156]
[1766592149690,0.01146841,87196.0,87184.0,0.01156]
[1766592149888,0.0688102,87197.0,87184.0,0.01156]